[Event "Titled Tuesday Blitz October 18 Late 2022"]
[White "Bogaudinov, Rushan"]
[Black "Manukian, Artak"]
[WhiteFideId "4129288"]
[BlackFideId "13301373"]
[WhiteElo "1945"]
[BlackElo "2469"]
[Result "0-1"]
[Round "04"]
[TimeControl "180+1"]
[Date "2022.10.19"]
[WhiteClock "0:00:05"]
[BlackClock "0:00:21"]

1. e4 {[%clk 0:02:59]}  c6 {[%clk 0:02:59]} 2. d4 {[%clk 0:02:58]}  d5 {[%clk 0:03:00]} 3. e5 {[%clk 0:02:58]}  Bf5 {[%clk 0:03:00]} 4. c4 {[%clk 0:02:58]}  e6 {[%clk 0:03:00]} 5. Nc3 {[%clk 0:02:58]}  Ne7 {[%clk 0:02:58]} 6. a3 {[%clk 0:02:57]}  Nd7 {[%clk 0:02:57]} 7. c5 {[%clk 0:02:57]}  f6 {[%clk 0:02:54]} 8. f4 {[%clk 0:02:56]}  b6 {[%clk 0:02:20]} 9. b4 {[%clk 0:02:55]}  a5 {[%clk 0:02:17]} 10. Be3 {[%clk 0:02:54]}  fxe5 {[%clk 0:02:11]} 11. fxe5 {[%clk 0:02:54]}  axb4 {[%clk 0:02:06]} 12. axb4 {[%clk 0:02:54]}  Rxa1 {[%clk 0:02:06]} 13. Qxa1 {[%clk 0:02:55]}  bxc5 {[%clk 0:01:56]} 14. bxc5 {[%clk 0:02:54]}  Nxc5 {[%clk 0:01:49]} 15. dxc5 {[%clk 0:02:49]}  d4 {[%clk 0:01:49]} 16. Nb5 {[%clk 0:02:27]}  Nd5 {[%clk 0:01:49]} 17. Qxd4 {[%clk 0:02:13]}  Nxe3 {[%clk 0:01:44]} 18. Qxe3 {[%clk 0:02:12]}  cxb5 {[%clk 0:01:37]} 19. Bxb5+ {[%clk 0:02:12]}  Kf7 {[%clk 0:01:38]} 20. Ne2 {[%clk 0:01:58]}  Qh4+ {[%clk 0:01:33]} 21. g3 {[%clk 0:01:53]}  Qb4+ {[%clk 0:01:27]} 22. Nc3 {[%clk 0:01:47]}  Bxc5 {[%clk 0:01:25]} 23. Qd2 {[%clk 0:01:42]}  Bd4 {[%clk 0:00:53]} 24. Nd1 {[%clk 0:01:25]}  Qc5 {[%clk 0:00:52]} 25. Rf1 {[%clk 0:01:04]}  Rd8 {[%clk 0:00:46]} 26. g4 {[%clk 0:00:37]}  Bc3 {[%clk 0:00:42]} 27. Nxc3 {[%clk 0:00:26]}  Rxd2 {[%clk 0:00:39]} 28. Kxd2 {[%clk 0:00:27]}  Qd4+ {[%clk 0:00:38]} 29. Ke2 {[%clk 0:00:22]}  Qxg4+ {[%clk 0:00:33]} 30. Rf3 {[%clk 0:00:19]}  Ke7 {[%clk 0:00:26]} 31. Kf2 {[%clk 0:00:13]}  Qd4+ {[%clk 0:00:25]} 32. Kg3 {[%clk 0:00:12]}  h5 {[%clk 0:00:24]} 33. h3 {[%clk 0:00:09]}  Qxe5+ {[%clk 0:00:23]} 34. Kf2 {[%clk 0:00:09]}  Qh2+ {[%clk 0:00:22]} 35. Ke3 {[%clk 0:00:09]}  Bxh3 {[%clk 0:00:22]} 36. Bd3 {[%clk 0:00:08]}  Qe5+ {[%clk 0:00:21]} 37. Ne4 {[%clk 0:00:07]}  Bf5 {[%clk 0:00:20]} 38. Rf4 {[%clk 0:00:06]}  g5 {[%clk 0:00:19]} 39. Rf1 {[%clk 0:00:06]}  h4 {[%clk 0:00:19]} 40. Rc1 {[%clk 0:00:06]}  Bxe4 {[%clk 0:00:18]} 41. Bxe4 {[%clk 0:00:06]}  Qf4+ {[%clk 0:00:19]} 42. Kd4 {[%clk 0:00:05]}  Qxc1 {[%clk 0:00:20]} 43. Ke5 {[%clk 0:00:06]}  Qf4+ {[%clk 0:00:19]} 44. Kd4 {[%clk 0:00:06]}  h3 {[%clk 0:00:20]} 45. Kd3 {[%clk 0:00:05]}  h2 {[%clk 0:00:20]} 46. Bh1 {[%clk 0:00:05]}  g4 {[%clk 0:00:20]} 47. Ke2 {[%clk 0:00:06]}  g3 {[%clk 0:00:20]} 48. Bg2 {[%clk 0:00:06]}  Qf2+ {[%clk 0:00:20]} 49. Kd3 {[%clk 0:00:05]}  Qxg2 {[%clk 0:00:21]} 0-1


[Site "https://www.chess.com"]

[Event "Titled Tuesday Blitz October 18 Late 2022"]
[White "Bordi, Kevin"]
[Black "Aldokhin, Ivan"]
[WhiteFideId "621862"]
[BlackFideId "24115720"]
[WhiteElo "2776"]
[BlackElo "2313"]
[Result "1-0"]
[Round "04"]
[TimeControl "180+1"]
[Date "2022.10.18"]
[WhiteClock "0:00:12"]
[BlackClock "0:00:05"]

1. e4 {[%clk 0:03:00]}  c5 {[%clk 0:03:00]} 2. Nf3 {[%clk 0:03:00]}  e6 {[%clk 0:03:00]} 3. b4 {[%clk 0:03:00]}  cxb4 {[%clk 0:03:00]} 4. d4 {[%clk 0:03:00]}  d5 {[%clk 0:02:59]} 5. e5 {[%clk 0:02:59]}  Nc6 {[%clk 0:02:59]} 6. Bd3 {[%clk 0:02:59]}  Nh6 {[%clk 0:02:51]} 7. Bxh6 {[%clk 0:02:58]}  gxh6 {[%clk 0:02:51]} 8. O-O {[%clk 0:02:59]}  Bg7 {[%clk 0:02:46]} 9. a3 {[%clk 0:02:59]}  O-O {[%clk 0:02:44]} 10. axb4 {[%clk 0:02:59]}  Nxb4 {[%clk 0:02:42]} 11. Be2 {[%clk 0:02:59]}  f6 {[%clk 0:02:36]} 12. c3 {[%clk 0:02:58]}  Nc6 {[%clk 0:02:36]} 13. exf6 {[%clk 0:02:59]}  Qxf6 {[%clk 0:02:35]} 14. Na3 {[%clk 0:02:59]}  Bd7 {[%clk 0:02:31]} 15. Nb5 {[%clk 0:02:59]}  a6 {[%clk 0:02:21]} 16. Na3 {[%clk 0:02:59]}  b5 {[%clk 0:02:14]} 17. Nc2 {[%clk 0:02:59]}  Be8 {[%clk 0:01:51]} 18. Nce1 {[%clk 0:02:56]}  b4 {[%clk 0:01:48]} 19. cxb4 {[%clk 0:02:45]}  Nxd4 {[%clk 0:01:29]} 20. Nxd4 {[%clk 0:02:45]}  Qxd4 {[%clk 0:01:28]} 21. Qxd4 {[%clk 0:02:46]}  Bxd4 {[%clk 0:01:28]} 22. Rxa6 {[%clk 0:02:46]}  Rxa6 {[%clk 0:01:20]} 23. Bxa6 {[%clk 0:02:47]}  Bh5 {[%clk 0:01:08]} 24. Nc2 {[%clk 0:02:37]}  Bb6 {[%clk 0:01:05]} 25. Ne3 {[%clk 0:02:38]}  Ra8 {[%clk 0:00:57]} 26. Bb7 {[%clk 0:02:21]}  Ra3 {[%clk 0:00:49]} 27. Re1 {[%clk 0:02:11]}  Kg7 {[%clk 0:00:36]} 28. Bc6 {[%clk 0:02:07]}  Bg6 {[%clk 0:00:34]} 29. h3 {[%clk 0:02:02]}  h5 {[%clk 0:00:29]} 30. b5 {[%clk 0:01:55]}  Ra2 {[%clk 0:00:28]} 31. Bd7 {[%clk 0:01:49]}  Kf6 {[%clk 0:00:24]} 32. Nxd5+ {[%clk 0:01:47]}  exd5 {[%clk 0:00:14]} 33. Re6+ {[%clk 0:01:47]}  Kg5 {[%clk 0:00:13]} 34. Rxb6 {[%clk 0:01:48]}  Ra1+ {[%clk 0:00:11]} 35. Kh2 {[%clk 0:01:48]}  Ra2 {[%clk 0:00:11]} 36. Rd6 {[%clk 0:01:44]}  Be4 {[%clk 0:00:10]} 37. h4+ {[%clk 0:01:20]}  Kxh4 {[%clk 0:00:10]} 38. Rf6 {[%clk 0:01:00]}  Kg5 {[%clk 0:00:10]} 39. Rf8 {[%clk 0:01:00]}  d4 {[%clk 0:00:10]} 40. f3 {[%clk 0:00:59]}  Bb7 {[%clk 0:00:07]} 41. Bc6 {[%clk 0:00:27]}  Bxc6 {[%clk 0:00:06]} 42. bxc6 {[%clk 0:00:28]}  Rc2 {[%clk 0:00:07]} 43. Rc8 {[%clk 0:00:26]}  d3 {[%clk 0:00:07]} 44. c7 {[%clk 0:00:27]}  Kh6 {[%clk 0:00:04]} 45. Kg3 {[%clk 0:00:25]}  d2 {[%clk 0:00:05]} 46. Rd8 {[%clk 0:00:25]}  Rxc7 {[%clk 0:00:05]} 47. Rd6+ {[%clk 0:00:25]}  Kg5 {[%clk 0:00:04]} 48. Rxd2 {[%clk 0:00:25]}  h4+ {[%clk 0:00:04]} 49. Kh3 {[%clk 0:00:26]}  Rc5 {[%clk 0:00:04]} 50. Rd4 {[%clk 0:00:26]}  Rc1 {[%clk 0:00:03]} 51. Rg4+ {[%clk 0:00:25]}  Kf5 {[%clk 0:00:03]} 52. Kxh4 {[%clk 0:00:25]}  h5 {[%clk 0:00:02]} 53. Rb4 {[%clk 0:00:20]}  Rh1+ {[%clk 0:00:02]} 54. Kg3 {[%clk 0:00:20]}  Kg5 {[%clk 0:00:02]} 55. Rb5+ {[%clk 0:00:20]}  Kg6 {[%clk 0:00:03]} 56. Kf4 {[%clk 0:00:21]}  Kf6 {[%clk 0:00:03]} 57. Rb6+ {[%clk 0:00:20]}  Kg7 {[%clk 0:00:04]} 58. g3 {[%clk 0:00:20]}  Kf7 {[%clk 0:00:04]} 59. Kg5 {[%clk 0:00:19]}  Kg7 {[%clk 0:00:04]} 60. Rb7+ {[%clk 0:00:19]}  Kf8 {[%clk 0:00:04]} 61. Rh7 {[%clk 0:00:18]}  Rh3 {[%clk 0:00:02]} 62. Kf4 {[%clk 0:00:17]}  Kg8 {[%clk 0:00:03]} 63. Rc7 {[%clk 0:00:17]}  Kf8 {[%clk 0:00:03]} 64. Ra7 {[%clk 0:00:14]}  Kg8 {[%clk 0:00:03]} 65. Ra1 {[%clk 0:00:14]}  Kg7 {[%clk 0:00:03]} 66. Rg1 {[%clk 0:00:15]}  Kg6 {[%clk 0:00:04]} 67. Ke3 {[%clk 0:00:15]}  Kg5 {[%clk 0:00:04]} 68. Kf2 {[%clk 0:00:15]}  h4 {[%clk 0:00:04]} 69. gxh4+ {[%clk 0:00:14]}  Kxh4 {[%clk 0:00:05]} 70. f4 {[%clk 0:00:13]}  Kh5 {[%clk 0:00:05]} 71. Rg3 {[%clk 0:00:11]}  Rh1 {[%clk 0:00:05]} 72. Kf3 {[%clk 0:00:11]}  Rf1+ {[%clk 0:00:04]} 73. Ke4 {[%clk 0:00:11]}  Re1+ {[%clk 0:00:04]} 74. Kf5 {[%clk 0:00:12]}  Rf1 {[%clk 0:00:05]} 75. Rh3# {[%clk 0:00:12]} 1-0


[Site "https://www.chess.com"]

[Event "Titled Tuesday Blitz October 18 Late 2022"]
[White "Boyer, Mahel"]
[Black "Zhurbinsky, David"]
[WhiteFideId "45102422"]
[BlackFideId "2072904"]
[WhiteElo "2454"]
[BlackElo "2581"]
[Result "0-1"]
[Round "04"]
[TimeControl "180+1"]
[Date "2022.10.18"]
[WhiteClock "0:00:21"]
[BlackClock "0:00:32"]

1. e4 {[%clk 0:03:00]}  e5 {[%clk 0:03:00]} 2. Nf3 {[%clk 0:03:00]}  Nc6 {[%clk 0:03:00]} 3. Bc4 {[%clk 0:03:00]}  Bc5 {[%clk 0:03:00]} 4. c3 {[%clk 0:02:59]}  Nf6 {[%clk 0:03:00]} 5. d3 {[%clk 0:03:00]}  O-O {[%clk 0:03:00]} 6. O-O {[%clk 0:02:59]}  d6 {[%clk 0:03:00]} 7. a4 {[%clk 0:02:55]}  a6 {[%clk 0:03:00]} 8. Na3 {[%clk 0:02:55]}  Qe7 {[%clk 0:02:58]} 9. Nc2 {[%clk 0:02:53]}  Ba7 {[%clk 0:02:56]} 10. Be3 {[%clk 0:02:52]}  Be6 {[%clk 0:02:53]} 11. Bxe6 {[%clk 0:02:49]}  Qxe6 {[%clk 0:02:49]} 12. Bxa7 {[%clk 0:02:44]}  Rxa7 {[%clk 0:02:46]} 13. Re1 {[%clk 0:02:45]}  Qb3 {[%clk 0:02:31]} 14. Qc1 {[%clk 0:02:35]}  b5 {[%clk 0:02:21]} 15. Ra3 {[%clk 0:02:29]}  Qe6 {[%clk 0:02:21]} 16. d4 {[%clk 0:02:09]}  exd4 {[%clk 0:02:09]} 17. Ncxd4 {[%clk 0:02:08]}  Nxd4 {[%clk 0:02:07]} 18. Nxd4 {[%clk 0:02:07]}  Qd7 {[%clk 0:01:43]} 19. axb5 {[%clk 0:02:08]}  a5 {[%clk 0:01:30]} 20. Nc6 {[%clk 0:01:56]}  Raa8 {[%clk 0:01:27]} 21. c4 {[%clk 0:01:53]}  Qg4 {[%clk 0:01:14]} 22. f3 {[%clk 0:01:53]}  Qh4 {[%clk 0:01:10]} 23. Qe3 {[%clk 0:01:22]}  Nd7 {[%clk 0:01:08]} 24. Rea1 {[%clk 0:01:14]}  Nb6 {[%clk 0:00:57]} 25. b3 {[%clk 0:01:12]}  Qf6 {[%clk 0:00:50]} 26. Qd4 {[%clk 0:01:05]}  Qf4 {[%clk 0:00:49]} 27. b4 {[%clk 0:00:55]}  axb4 {[%clk 0:00:45]} 28. Rxa8 {[%clk 0:00:51]}  Rxa8 {[%clk 0:00:45]} 29. Rxa8+ {[%clk 0:00:49]}  Nxa8 {[%clk 0:00:46]} 30. Ne7+ {[%clk 0:00:35]}  Kf8 {[%clk 0:00:42]} 31. Nf5 {[%clk 0:00:36]}  Qe5 {[%clk 0:00:37]} 32. Qa7 {[%clk 0:00:25]}  Qc5+ {[%clk 0:00:34]} 33. Qxc5 {[%clk 0:00:20]}  dxc5 {[%clk 0:00:35]} 34. Kf2 {[%clk 0:00:21]}  b3 {[%clk 0:00:32]} 0-1


[Site "https://www.chess.com"]

[Event "Titled Tuesday Blitz October 18 Late 2022"]
[White "Brown, Andrew"]
[Black "Hajiyev, Kanan"]
[WhiteFideId "3206513"]
[BlackFideId "13404148"]
[WhiteElo "2245"]
[BlackElo "2118"]
[Result "1-0"]
[Round "04"]
[TimeControl "180+1"]
[Date "2022.10.19"]
[WhiteClock "0:00:40"]
[BlackClock "0:00:04"]

1. d4 {[%clk 0:03:00]}  d5 {[%clk 0:02:56]} 2. c4 {[%clk 0:03:01]}  c6 {[%clk 0:02:56]} 3. Nc3 {[%clk 0:03:00]}  Nf6 {[%clk 0:02:57]} 4. Nf3 {[%clk 0:03:00]}  g6 {[%clk 0:02:57]} 5. e3 {[%clk 0:02:57]}  Bg7 {[%clk 0:02:57]} 6. Bd3 {[%clk 0:02:56]}  O-O {[%clk 0:02:57]} 7. h3 {[%clk 0:02:55]}  c5 {[%clk 0:02:57]} 8. O-O {[%clk 0:02:54]}  cxd4 {[%clk 0:02:56]} 9. Nxd4 {[%clk 0:02:54]}  e5 {[%clk 0:02:48]} 10. Nb3 {[%clk 0:02:53]}  Nc6 {[%clk 0:01:55]} 11. Qe2 {[%clk 0:02:35]}  e4 {[%clk 0:01:10]} 12. Bb1 {[%clk 0:02:33]}  dxc4 {[%clk 0:01:04]} 13. Rd1 {[%clk 0:02:19]}  Qe7 {[%clk 0:00:50]} 14. Qxc4 {[%clk 0:02:17]}  Be6 {[%clk 0:00:49]} 15. Qc5 {[%clk 0:02:13]}  Bxb3 {[%clk 0:00:36]} 16. Qxe7 {[%clk 0:02:12]}  Nxe7 {[%clk 0:00:37]} 17. axb3 {[%clk 0:02:12]}  Rfd8 {[%clk 0:00:28]} 18. Rxd8+ {[%clk 0:02:03]}  Rxd8 {[%clk 0:00:29]} 19. Rxa7 {[%clk 0:02:03]}  Ned5 {[%clk 0:00:29]} 20. Nxe4 {[%clk 0:01:50]}  Nxe4 {[%clk 0:00:23]} 21. Bxe4 {[%clk 0:01:51]}  Nf6 {[%clk 0:00:24]} 22. Bf3 {[%clk 0:01:50]}  Ne4 {[%clk 0:00:15]} 23. Rxb7 {[%clk 0:01:47]}  Nc5 {[%clk 0:00:14]} 24. Rb5 {[%clk 0:01:39]}  Nd3 {[%clk 0:00:14]} 25. Bd2 {[%clk 0:01:36]}  Nxb2 {[%clk 0:00:09]} 26. Bd5 {[%clk 0:01:28]}  Nd1 {[%clk 0:00:06]} 27. e4 {[%clk 0:01:22]}  Nc3 {[%clk 0:00:06]} 28. Bxc3 {[%clk 0:01:21]}  Bxc3 {[%clk 0:00:07]} 29. Rb7 {[%clk 0:01:21]}  Rf8 {[%clk 0:00:06]} 30. b4 {[%clk 0:01:21]}  h5 {[%clk 0:00:05]} 31. b5 {[%clk 0:01:21]}  g5 {[%clk 0:00:05]} 32. Kf1 {[%clk 0:01:18]}  h4 {[%clk 0:00:05]} 33. Ke2 {[%clk 0:01:18]}  Be5 {[%clk 0:00:06]} 34. Kf3 {[%clk 0:01:17]}  Kg7 {[%clk 0:00:06]} 35. Kg4 {[%clk 0:01:16]}  Kg6 {[%clk 0:00:07]} 36. b6 {[%clk 0:01:13]}  f6 {[%clk 0:00:07]} 37. Be6 {[%clk 0:01:11]}  Kh6 {[%clk 0:00:06]} 38. Bf5 {[%clk 0:01:11]}  Rh8 {[%clk 0:00:06]} 39. Rd7 {[%clk 0:01:08]}  Bf4 {[%clk 0:00:06]} 40. b7 {[%clk 0:01:07]}  Be5 {[%clk 0:00:07]} 41. g3 {[%clk 0:01:06]}  hxg3 {[%clk 0:00:06]} 42. fxg3 {[%clk 0:01:07]}  Bb8 {[%clk 0:00:06]} 43. Rf7 {[%clk 0:01:00]}  Be5 {[%clk 0:00:06]} 44. Bc8 {[%clk 0:00:51]}  Rd8 {[%clk 0:00:01]} 45. Rxf6+ {[%clk 0:00:49]}  Kg7 {[%clk 0:00:02]} 46. Rf5 {[%clk 0:00:44]}  Bb8 {[%clk 0:00:03]} 47. Rxg5+ {[%clk 0:00:44]}  Kf6 {[%clk 0:00:03]} 48. Rd5 {[%clk 0:00:43]}  Kg6 {[%clk 0:00:04]} 49. Rxd8 {[%clk 0:00:40]} 1-0


[Site "https://www.chess.com"]

[Event "Titled Tuesday Blitz October 18 Late 2022"]
[White "Can, Melih Kaan"]
[Black "Bulgurlu, Okan"]
[WhiteFideId "6317383"]
[BlackFideId "6352316"]
[WhiteElo "2029"]
[BlackElo "2166"]
[Result "0-1"]
[Round "04"]
[TimeControl "180+1"]
[Date "2022.10.19"]
[WhiteClock "0:00:05"]
[BlackClock "0:00:18"]

1. e4 {[%clk 0:03:00]}  c5 {[%clk 0:02:59]} 2. Nf3 {[%clk 0:03:00]}  g6 {[%clk 0:02:57]} 3. c3 {[%clk 0:02:52]}  d5 {[%clk 0:02:55]} 4. exd5 {[%clk 0:02:52]}  Qxd5 {[%clk 0:02:56]} 5. d4 {[%clk 0:02:53]}  Nc6 {[%clk 0:02:48]} 6. Be3 {[%clk 0:02:49]}  cxd4 {[%clk 0:02:44]} 7. cxd4 {[%clk 0:02:49]}  e5 {[%clk 0:02:44]} 8. Nc3 {[%clk 0:02:49]}  Bb4 {[%clk 0:02:43]} 9. dxe5 {[%clk 0:02:44]}  Qa5 {[%clk 0:02:35]} 10. Qb3 {[%clk 0:02:24]}  Be6 {[%clk 0:02:26]} 11. Bc4 {[%clk 0:02:24]}  Bxc4 {[%clk 0:02:05]} 12. Qxc4 {[%clk 0:02:24]}  Nge7 {[%clk 0:02:02]} 13. O-O {[%clk 0:02:11]}  O-O {[%clk 0:01:57]} 14. Qh4 {[%clk 0:02:05]}  Nf5 {[%clk 0:01:53]} 15. Qf6 {[%clk 0:01:53]}  Be7 {[%clk 0:01:50]} 16. Qxf5 {[%clk 0:01:32]}  gxf5 {[%clk 0:01:47]} 17. Rfe1 {[%clk 0:01:19]}  Nb4 {[%clk 0:01:39]} 18. Bh6 {[%clk 0:01:16]}  Rfd8 {[%clk 0:01:29]} 19. Re2 {[%clk 0:01:16]}  Rd3 {[%clk 0:01:24]} 20. Rae1 {[%clk 0:01:09]}  Rad8 {[%clk 0:01:21]} 21. e6 {[%clk 0:01:04]}  f6 {[%clk 0:01:19]} 22. a3 {[%clk 0:00:47]}  Nd5 {[%clk 0:01:16]} 23. Bd2 {[%clk 0:00:47]}  Nxc3 {[%clk 0:01:12]} 24. Bxc3 {[%clk 0:00:48]}  Qd5 {[%clk 0:01:10]} 25. Nd2 {[%clk 0:00:42]}  Bxa3 {[%clk 0:00:59]} 26. Bxf6 {[%clk 0:00:41]}  Rxd2 {[%clk 0:00:59]} 27. Re5 {[%clk 0:00:36]}  Rd1 {[%clk 0:00:54]} 28. Bxd8 {[%clk 0:00:23]}  Qxd8 {[%clk 0:00:44]} 29. bxa3 {[%clk 0:00:20]}  Rxe1+ {[%clk 0:00:42]} 30. Rxe1 {[%clk 0:00:21]}  Qe7 {[%clk 0:00:42]} 31. Re3 {[%clk 0:00:19]}  Kg7 {[%clk 0:00:41]} 32. f4 {[%clk 0:00:14]}  Qc5 {[%clk 0:00:39]} 33. Kf2 {[%clk 0:00:14]}  Qc2+ {[%clk 0:00:35]} 34. Kf3 {[%clk 0:00:14]}  Qd1+ {[%clk 0:00:35]} 35. Kf2 {[%clk 0:00:12]}  Qd2+ {[%clk 0:00:35]} 36. Kf3 {[%clk 0:00:11]}  Qd5+ {[%clk 0:00:34]} 37. Kf2 {[%clk 0:00:12]}  Kf8 {[%clk 0:00:30]} 38. e7+ {[%clk 0:00:08]}  Ke8 {[%clk 0:00:30]} 39. h3 {[%clk 0:00:09]}  b5 {[%clk 0:00:28]} 40. g4 {[%clk 0:00:09]}  fxg4 {[%clk 0:00:28]} 41. hxg4 {[%clk 0:00:10]}  a5 {[%clk 0:00:27]} 42. f5 {[%clk 0:00:08]}  Qd4 {[%clk 0:00:26]} 43. Kf3 {[%clk 0:00:08]}  b4 {[%clk 0:00:25]} 44. axb4 {[%clk 0:00:08]}  axb4 {[%clk 0:00:26]} 45. g5 {[%clk 0:00:09]}  Qh4 {[%clk 0:00:23]} 46. f6 {[%clk 0:00:08]}  Qh5+ {[%clk 0:00:22]} 47. Kf4 {[%clk 0:00:08]}  Qg6 {[%clk 0:00:16]} 48. Rg3 {[%clk 0:00:04]}  h6 {[%clk 0:00:15]} 49. Rg4 {[%clk 0:00:03]}  hxg5+ {[%clk 0:00:15]} 50. Ke5 {[%clk 0:00:03]}  Kf7 {[%clk 0:00:14]} 51. Rxb4 {[%clk 0:00:03]}  Qxf6+ {[%clk 0:00:14]} 52. Kd5 {[%clk 0:00:03]}  Qxe7 {[%clk 0:00:14]} 53. Rc4 {[%clk 0:00:03]}  Qe6+ {[%clk 0:00:14]} 54. Kd4 {[%clk 0:00:03]}  Kf6 {[%clk 0:00:14]} 55. Rc3 {[%clk 0:00:03]}  Qe5+ {[%clk 0:00:14]} 56. Kd3 {[%clk 0:00:03]}  Kf5 {[%clk 0:00:13]} 57. Rc2 {[%clk 0:00:03]}  Qe4+ {[%clk 0:00:13]} 58. Kd2 {[%clk 0:00:04]}  Qxc2+ {[%clk 0:00:13]} 59. Kxc2 {[%clk 0:00:04]}  Kf4 {[%clk 0:00:14]} 60. Kd2 {[%clk 0:00:04]}  Kg3 {[%clk 0:00:15]} 61. Ke1 {[%clk 0:00:05]}  Kh2 {[%clk 0:00:16]} 62. Kf1 {[%clk 0:00:04]}  g4 {[%clk 0:00:17]} 63. Kf2 {[%clk 0:00:05]}  g3+ {[%clk 0:00:18]} 0-1


[Site "https://www.chess.com"]

[Event "Titled Tuesday Blitz October 18 Late 2022"]
[White "Castella Garcia, Fausto"]
[Black "Tarnowska, Aleksandra"]
[WhiteFideId "3501922"]
[BlackFideId "1180967"]
[WhiteElo "2246"]
[BlackElo "1776"]
[Result "0-1"]
[Round "04"]
[TimeControl "180+1"]
[Date "2022.10.19"]
[WhiteClock "0:00:16"]
[BlackClock "0:00:07"]

1. e4 {[%clk 0:03:00]}  c5 {[%clk 0:02:55]} 2. Nf3 {[%clk 0:03:00]}  e6 {[%clk 0:02:54]} 3. Nc3 {[%clk 0:02:59]}  a6 {[%clk 0:02:54]} 4. d4 {[%clk 0:02:58]}  cxd4 {[%clk 0:02:55]} 5. Nxd4 {[%clk 0:02:58]}  Qc7 {[%clk 0:02:56]} 6. Qf3 {[%clk 0:02:58]}  Nc6 {[%clk 0:02:43]} 7. Nxc6 {[%clk 0:02:57]}  dxc6 {[%clk 0:02:33]} 8. Bc4 {[%clk 0:02:49]}  Nf6 {[%clk 0:01:47]} 9. O-O {[%clk 0:02:45]}  e5 {[%clk 0:01:45]} 10. a4 {[%clk 0:02:37]}  Bg4 {[%clk 0:01:42]} 11. Qg3 {[%clk 0:02:36]}  h5 {[%clk 0:01:38]} 12. h3 {[%clk 0:02:24]}  h4 {[%clk 0:01:36]} 13. Qe3 {[%clk 0:02:23]}  Bd7 {[%clk 0:01:09]} 14. a5 {[%clk 0:02:15]}  Be7 {[%clk 0:00:56]} 15. Na4 {[%clk 0:01:57]}  Nh5 {[%clk 0:00:37]} 16. Nb6 {[%clk 0:01:54]}  Rd8 {[%clk 0:00:36]} 17. Qf3 {[%clk 0:01:49]}  Nf4 {[%clk 0:00:35]} 18. Bxf4 {[%clk 0:01:42]}  exf4 {[%clk 0:00:34]} 19. e5 {[%clk 0:01:42]}  Qxe5 {[%clk 0:00:26]} 20. Rfe1 {[%clk 0:01:41]}  Qf6 {[%clk 0:00:26]} 21. Re4 {[%clk 0:01:26]}  O-O {[%clk 0:00:22]} 22. Rxf4 {[%clk 0:01:25]}  Qg6 {[%clk 0:00:22]} 23. Re1 {[%clk 0:01:17]}  Bf6 {[%clk 0:00:22]} 24. Nxd7 {[%clk 0:01:14]}  Rxd7 {[%clk 0:00:23]} 25. Bd3 {[%clk 0:01:06]}  Qg5 {[%clk 0:00:22]} 26. Qe4 {[%clk 0:01:05]}  Qh6 {[%clk 0:00:21]} 27. Rxf6 {[%clk 0:01:00]}  gxf6 {[%clk 0:00:21]} 28. Qf5 {[%clk 0:01:00]}  Rd5 {[%clk 0:00:18]} 29. Qf3 {[%clk 0:00:54]}  Rg5 {[%clk 0:00:17]} 30. Re4 {[%clk 0:00:54]}  Kg7 {[%clk 0:00:15]} 31. Re7 {[%clk 0:00:48]}  Qh5 {[%clk 0:00:15]} 32. Qe4 {[%clk 0:00:45]}  Qd1+ {[%clk 0:00:09]} 33. Kh2 {[%clk 0:00:43]}  Qh5 {[%clk 0:00:10]} 34. f4 {[%clk 0:00:42]}  Rg3 {[%clk 0:00:09]} 35. Be2 {[%clk 0:00:40]}  Qg6 {[%clk 0:00:09]} 36. f5 {[%clk 0:00:38]}  Qg5 {[%clk 0:00:09]} 37. Bf3 {[%clk 0:00:39]}  Rg8 {[%clk 0:00:08]} 38. Qc4 {[%clk 0:00:37]}  Rf8 {[%clk 0:00:06]} 39. Rxb7 {[%clk 0:00:33]}  Qxf5 {[%clk 0:00:06]} 40. Qxh4 {[%clk 0:00:32]}  Rg5 {[%clk 0:00:05]} 41. Be4 {[%clk 0:00:31]}  Qe5+ {[%clk 0:00:05]} 42. Kg1 {[%clk 0:00:29]}  Qd4+ {[%clk 0:00:04]} 43. Kh1 {[%clk 0:00:28]}  Qd1+ {[%clk 0:00:04]} 44. Kh2 {[%clk 0:00:28]}  Qh5 {[%clk 0:00:05]} 45. Qxh5 {[%clk 0:00:27]}  Rxh5 {[%clk 0:00:05]} 46. Rc7 {[%clk 0:00:27]}  Rc5 {[%clk 0:00:06]} 47. c3 {[%clk 0:00:26]}  Rxa5 {[%clk 0:00:06]} 48. Bxc6 {[%clk 0:00:26]}  Rc5 {[%clk 0:00:06]} 49. c4 {[%clk 0:00:25]}  Rxc4 {[%clk 0:00:05]} 50. b4 {[%clk 0:00:23]}  Rd8 {[%clk 0:00:04]} 51. b5 {[%clk 0:00:19]}  axb5 {[%clk 0:00:04]} 52. h4 {[%clk 0:00:20]}  Rd6 {[%clk 0:00:04]} 53. Kg3 {[%clk 0:00:20]}  Rdxc6 {[%clk 0:00:04]} 54. Rd7 {[%clk 0:00:20]}  Rc3+ {[%clk 0:00:04]} 55. Kh2 {[%clk 0:00:21]}  R6c4 {[%clk 0:00:05]} 56. h5 {[%clk 0:00:21]}  Rh4+ {[%clk 0:00:05]} 57. Kg1 {[%clk 0:00:17]}  Rxh5 {[%clk 0:00:05]} 58. Kf2 {[%clk 0:00:17]}  Rg5 {[%clk 0:00:06]} 59. Ke2 {[%clk 0:00:17]}  Rc2+ {[%clk 0:00:06]} 60. Kd3 {[%clk 0:00:17]}  Rcxg2 {[%clk 0:00:06]} 61. Ke4 {[%clk 0:00:17]}  R2g4+ {[%clk 0:00:06]} 62. Kf3 {[%clk 0:00:17]}  b4 {[%clk 0:00:07]} 63. Rb7 {[%clk 0:00:16]}  Rc4 {[%clk 0:00:07]} 0-1


[Site "https://www.chess.com"]